fUSD/lending_fUSD_20260219
["ID","MTS","AMOUNT","RATE_DAILY","PERIOD"]
[405986173,1771501349759,-181.81701239,0.00039999,31]
[405986174,1771501349781,-584.43807791,0.00039999,31]
[405986175,1771501349804,-584.43807791,0.00039999,31]
[405986176,1771501349826,-584.43807791,0.00039999,31]
[405986177,1771501349851,-584.43807791,0.00039999,31]
[405986178,1771501350027,-584.43807791,0.00039999,31]
[405986179,1771501350050,-500.0,0.00039999,31]
[405986180,1771501350074,-584.43807791,0.00039999,31]
[405986181,1771501350101,-584.43807791,0.00039999,31]
[405986182,1771501350126,-584.43807791,0.00039999,31]
[405986183,1771501350150,-584.43807791,0.00039999,31]
[405986184,1771501350174,-584.43807791,0.00039999,31]
[405986185,1771501350200,-584.43807791,0.00039999,31]
[405986186,1771501350226,-584.43807791,0.00039999,31]
[405986187,1771501350249,-584.43807791,0.00039999,31]
[405986188,1771501350271,-584.43807791,0.00039999,31]
[405986189,1771501350295,-584.43807791,0.00039999,31]
[405986190,1771501350322,-642.88188569,0.00039999,31]
[405986191,1771501350347,-642.88188569,0.00039999,31]
[405986192,1771501350370,-642.88188569,0.00039999,31]
[405986193,1771501350393,-642.88188569,0.00039999,31]
[405986194,1771501350416,-642.88188569,0.00039999,31]
[405986195,1771501350440,-642.88188569,0.00039999,31]
[405986196,1771501350466,-642.88188569,0.00039999,31]
[405986197,1771501350490,-642.88188569,0.00039999,31]
[405986198,1771501350515,-642.88188569,0.00039999,31]
[405986199,1771501350539,-919.98,0.0004,30]
[405986200,1771501350562,-153.0,0.0004,120]
[405986201,1771501350617,-156.71,0.000401,30]
[405986202,1771501350641,-153.0,0.000406,120]
[405986203,1771501350666,-151.0,0.00040822,120]
[405986204,1771501350690,-151.385462,0.00040822,120]
[405986205,1771501350715,-841.0,0.00041096,120]
[405986206,1771501350738,-248.1,0.00041096,120]
[405986207,1771501350761,-153.0,0.000413,120]
[405986208,1771501350786,-841.0,0.0004137,120]
[405986209,1771501350809,-841.0,0.00041644,120]
[405986210,1771501350834,-152.74,0.00041866,120]
[405986211,1771501350860,-153.0,0.000419,120]
[405986212,1771501350882,-841.0,0.00041918,120]
[405986213,1771501350908,-152.74,0.00041966,120]
[405986214,1771501350935,-526.39678491,0.00042,120]
[405986215,1771501350958,-500.0,0.00042,120]
[405986216,1771501350981,-841.0,0.00042192,120]
[405986217,1771501351004,-841.0,0.00042466,120]
[405986218,1771501351026,-863.42766188,0.000425,120]
[405986219,1771501351049,-500.0,0.000425,120]
[405986220,1771501351072,-211.35811197,0.00042567,120]
[405986221,1771501351096,-153.0,0.000426,120]
[405986222,1771501351120,-841.0,0.0004274,120]
[405986223,1771501351143,-761.2,0.00042898,120]
[405986224,1771501351169,-152.74,0.00042966,120]
[405986225,1771501351196,-2690.0,0.00043,120]
[405986226,1771501351219,-500.0,0.00043,120]
[405986227,1771501351243,-841.0,0.00043014,120]
[405986228,1771501351266,-156.71,0.00043088,120]
[405986229,1771501351290,-919.98,0.000431,30]
[405986230,1771501351313,-153.0,0.000432,120]
[405986231,1771501351337,-841.0,0.00043288,120]
[405986232,1771501351361,-500.0,0.000435,120]
[405986233,1771501351384,-841.0,0.00043562,120]
[405986234,1771501351407,-1037.6,0.00043653,120]
[405986235,1771501351431,-153.0,0.000438,120]
[405986236,1771501351460,-1252.16,0.00043835,120]
[405986237,1771501351484,-1252.16,0.00043835,120]
[405986238,1771501351508,-1252.16,0.00043835,120]
[405986239,1771501351532,-1252.16,0.00043835,120]
[405986240,1771501351557,-1252.16,0.00043835,120]
[405986241,1771501351581,-1252.16,0.00043835,120]
[405986242,1771501351606,-1252.16,0.00043835,120]
[405986243,1771501351630,-1252.16,0.00043835,120]
[405986244,1771501351654,-1252.16,0.00043835,120]
[405986245,1771501351678,-1252.16,0.00043835,120]
[405986246,1771501351702,-1252.16,0.00043835,120]
[405986247,1771501351726,-1252.16,0.00043835,120]
[405986248,1771501351750,-1252.16,0.00043835,120]
[405986249,1771501351774,-1252.16,0.00043835,120]
[405986250,1771501351799,-1252.16,0.00043835,120]
[405986251,1771501351822,-1252.16,0.00043835,120]
[405986252,1771501351849,-1252.16,0.00043835,120]
[405986253,1771501351872,-1252.16,0.00043835,120]
[405986254,1771501351898,-1252.16,0.00043835,120]
[405986255,1771501351925,-500.5,0.00043835,120]
[405986256,1771501351949,-500.0,0.00043835,120]
[405986257,1771501351972,-500.0,0.00043835,120]
[405986258,1771501351996,-500.0,0.00043835,120]
[405986259,1771501352020,-500.0,0.00043835,120]
[405986260,1771501352045,-500.0,0.00043835,120]
[405986261,1771501352072,-500.0,0.00043835,120]
[405986262,1771501352099,-500.0,0.00043835,120]
[405986263,1771501352125,-500.0,0.00043835,120]
[405986264,1771501352151,-500.0,0.00043835,120]
[405986265,1771501352175,-500.0,0.00043835,120]
[405986266,1771501352198,-500.0,0.00043835,120]
[405986267,1771501352222,-500.0,0.00043835,120]
[405986268,1771501352245,-260.87921566,0.00043835,120]
[405986269,1771501352269,-500.0,0.00043835,120]
[405986270,1771501352292,-535.81142558,0.00043835,120]
[405986271,1771501352315,-500.0,0.00043835,120]
[405986272,1771501352339,-442.04677745,0.00043835,120]
[405986273,1771501352363,-500.0,0.00043835,120]
[405986274,1771501352386,-393.15150194,0.00043835,120]
[405986275,1771501352410,-500.0,0.00043835,120]
[405986276,1771501352432,-500.0,0.00043835,120]
[405986277,1771501352455,-500.0,0.00043835,120]
[405986278,1771501352479,-508.25539515,0.00043835,120]
[405986279,1771501352601,-507.81655609,0.00043835,120]
[405986280,1771501352649,-500.0,0.00043835,120]
[405986281,1771501352674,-2376.43,0.00043835,120]
[405986282,1771501352698,-2376.43,0.00043835,120]
[405986283,1771501352723,-2376.43,0.00043835,120]
[405986284,1771501352748,-2376.43,0.00043835,120]
[405986285,1771501352772,-2376.43,0.00043835,120]
[405986286,1771501352796,-2376.43,0.00043835,120]
[405986287,1771501352820,-2376.43,0.00043835,120]
[405986288,1771501352848,-2376.43,0.00043835,120]
[405986289,1771501352872,-2376.43,0.00043835,120]
[405986290,1771501352899,-2376.43,0.00043835,120]
[405986291,1771501352924,-2376.43,0.00043835,120]
[405986292,1771501352948,-2376.43,0.00043835,120]
[405986293,1771501352973,-2376.43,0.00043835,120]
[405986294,1771501352997,-2376.43,0.00043835,120]
[405986295,1771501353021,-2376.43,0.00043835,120]
[405986296,1771501353046,-2376.43,0.00043835,120]
[405986297,1771501353070,-2376.43,0.00043835,120]
[405986298,1771501353096,-2376.43,0.00043835,120]
[405986299,1771501353121,-500.0,0.00043835,120]
[405986300,1771501353145,-500.0,0.00043835,120]
[405986301,1771501353168,-500.0,0.00043835,120]
[405986302,1771501353192,-625.89180749,0.00043835,120]
[405986303,1771501353217,-500.0,0.00043835,120]
[405986304,1771501353242,-500.0,0.00043835,120]
[405986305,1771501353265,-500.0,0.00043835,120]
[405986306,1771501353288,-500.0,0.00043835,120]
[405986307,1771501353312,-500.0,0.00043835,120]
[405986308,1771501353336,-500.0,0.00043835,120]
[405986309,1771501353359,-500.0,0.00043835,120]
[405986310,1771501353382,-500.0,0.00043835,120]
[405986311,1771501353406,-500.0,0.00043835,120]
[405986312,1771501353430,-500.0,0.00043835,120]
[405986313,1771501353455,-500.0,0.00043835,120]
[405986314,1771501353480,-500.0,0.00043835,120]
[405986315,1771501353504,-500.0,0.00043835,120]
[405986316,1771501353529,-500.0,0.00043835,120]
[405986317,1771501353553,-500.0,0.00043835,120]
[405986318,1771501353577,-500.0,0.00043835,120]
[405986319,1771501353602,-500.0,0.00043835,120]
[405986320,1771501353626,-500.0,0.00043835,120]
[405986321,1771501353650,-505.89412863,0.00043835,120]
[405986322,1771501353679,-500.0,0.00043835,120]
[405986323,1771501353705,-500.0,0.00043835,120]
[405986324,1771501353732,-500.0,0.00043835,120]
[405986325,1771501353760,-500.0,0.00043835,120]
[405986326,1771501353787,-330.22,0.00043835,120]
[405986327,1771501353817,-500.0,0.00043835,120]
[405986328,1771501353843,-505.53095222,0.00043835,120]
[405986329,1771501353873,-841.0,0.00043836,120]
[405986330,1771501353899,-1207.63,0.0004385,120]
[405986331,1771501353927,-2376.43,0.00043899,120]
[405986332,1771501353951,-160.0,0.00044,120]
[405986333,1771501353977,-500.0,0.00044,120]
[405986334,1771501354001,-841.0,0.0004411,120]
[405986335,1771501354024,-399.38488592,0.00044164,120]
[405986336,1771501354049,-565.2,0.00044384,120]
[405986337,1771501354073,-150.0,0.000444,120]
[405986338,1771501354098,-150.0,0.000444,120]
[405986339,1771501354121,-150.0,0.000444,120]
[405986340,1771501354146,-150.0,0.000444,120]
[405986341,1771501354170,-1037.6,0.00044409,120]
[405986342,1771501354194,-8392.55799352,0.00044489,120]
[405986343,1771501354230,-2376.43,0.0004449,120]
[405986344,1771501354253,-709.29363093,0.0004449,30]
[405986345,1771501354276,-709.29363093,0.0004449,30]
[405986346,1771501354299,-709.29363093,0.0004449,30]
[405986347,1771501354321,-709.29363093,0.0004449,30]
[405986348,1771501354345,-153.0,0.000445,120]
[405986349,1771501354368,-164.87175527,0.000445,120]
[405986350,1771501354391,-198.00105982,0.000445,120]
[405986351,1771501354416,-282.9725,0.00044657,120]
[405986352,1771501354439,-4812.42,0.00044932,120]
[405986353,1771501354465,-50000.0,0.00045,65]
[405986354,1771501354489,-160.0,0.00045,120]
[405986355,1771501354514,-150.0,0.00045,120]
[405986356,1771501354539,-2344.60862808,0.00045,120]
[405986357,1771501354562,-749.34886996,0.00045,120]
[405986358,1771501354587,-1387.03661853,0.00045,120]
[405986359,1771501354609,-1345.53627478,0.00045,120]
[405986360,1771501354632,-1077.34247692,0.00045,120]
[405986361,1771501354655,-552.1933902,0.00045,120]
[405986362,1771501354678,-1304.82950745,0.00045,120]
[405986363,1771501354702,-990.65947482,0.00045,30]
[405986364,1771501354726,-230.29354316,0.00045,30]
[405986365,1771501354749,-1142.85157083,0.00045,32]
[405986366,1771501354772,-879.23821457,0.00045,120]
[405986367,1771501354796,-359.46727945,0.00045,30]
[405986368,1771501354819,-151.99392535,0.00045,30]
[405986369,1771501354844,-383.99265716,0.00045,120]
[405986370,1771501354870,-1028.29759972,0.00045,120]
[405986371,1771501354894,-1069.6398164,0.00045,120]
[405986372,1771501354918,-2690.0,0.00045,120]
[405986373,1771501354941,-160.0,0.00045,30]
[405986374,1771501354967,-150.0,0.00045075,120]
[405986375,1771501354992,-153.0,0.000451,120]
[405986376,1771501355016,-864.62006502,0.000451,120]
[405986377,1771501355040,-1037.6,0.00045164,120]
[405986378,1771501355066,-565.945,0.00045479,120]
[405986379,1771501355090,-919.98,0.000455,30]
[405986380,1771501355114,-153.0,0.000457,120]
[405986381,1771501355139,-1415.123,0.000457,90]
[405986382,1771501355292,-1415.12,0.000457,90]
[405986383,1771501355316,-633.35011916,0.000457,120]
[405986384,1771501355339,-1250.481,0.000457,120]
[405986385,1771501355362,-1250.48,0.000457,120]
[405986386,1771501355386,-198.00105982,0.000458,120]
[405986387,1771501355411,-283.12,0.00045885,120]
[405986388,1771501355435,-1000.0,0.000459,120]
[405986389,1771501355459,-1037.6,0.00045919,120]
[405986390,1771501355483,-150.0,0.00046,120]
[405986391,1771501355507,-1640.29564532,0.00046,120]
[405986392,1771501355532,-1000.0,0.00046,30]
[405986393,1771501355555,-252.48404595,0.00046,30]
[405986394,1771501355581,-205.69610488,0.00046,30]
[405986395,1771501355605,-231.36963096,0.00046,30]
[405986396,1771501355630,-161.31778884,0.00046,120]
[405986397,1771501355655,-510.52773416,0.00046,90]
[405986398,1771501355678,-311.16855109,0.00046,120]
[405986399,1771501355702,-902.22165758,0.00046,120]
[405986400,1771501355725,-1908.0897684,0.00046,120]
[405986401,1771501355749,-2500.0,0.00046,30]
[405986402,1771501355773,-156.71,0.00046077,120]
[405986403,1771501355796,-211.35811197,0.00046219,120]
[405986404,1771501355825,-150.0,0.00046298,120]
[405986405,1771501355850,-848.9175,0.00046301,120]
[405986406,1771501355874,-166.43958157,0.00046301,30]
[405986407,1771501355899,-153.0,0.000464,120]
[405986408,1771501355926,-990.75193106,0.0004649,120]
[405986409,1771501355950,-5005.0,0.000465,120]
[405986410,1771501355974,-1037.6,0.00046675,120]
[405986411,1771501355998,-1454.32064919,0.000468,120]
[405986412,1771501356024,-919.33,0.000468,120]
[405986413,1771501356049,-150.0,0.00046894,120]
[405986414,1771501356075,-1468.789,0.000469,120]
[405986415,1771501356099,-1468.79,0.000469,120]
[405986416,1771501356122,-1717.49964536,0.000469,120]
[405986417,1771501356146,-1050.7951,0.000469,90]
[405986418,1771501356170,-150.0,0.00047,120]
[405986419,1771501356194,-153.0,0.00047,120]
[405986420,1771501356218,-636.32568407,0.00047,30]
[405986421,1771501356242,-1452.06573532,0.00047,120]
[405986422,1771501356267,-2690.0,0.00047,120]
[405986423,1771501356292,-1131.89,0.00047123,120]
[405986424,1771501356317,-198.00105982,0.000472,120]
[405986425,1771501356342,-919.33,0.00047208,120]
[405986426,1771501356368,-410.1926861,0.0004743,120]
[405986427,1771501356392,-1037.6,0.0004743,120]
[405986428,1771501356416,-750.71939835,0.000475,120]
[405986429,1771501356440,-919.98,0.000476,30]
[405986430,1771501356465,-919.33,0.00047616,120]
[405986431,1771501356489,-150.0,0.00047678,120]
[405986432,1771501356514,-153.0,0.000477,120]
[405986433,1771501356539,-150.0,0.00047759,120]
[405986434,1771501356564,-1414.8625,0.00047945,120]
[405986435,1771501356602,-290.0,0.00048,120]
[405986436,1771501356628,-150.0,0.00048,120]
[405986437,1771501356652,-909.6473755,0.00048,120]
[405986438,1771501356676,-1057.70853223,0.00048,120]
[405986439,1771501356702,-496.64963752,0.00048,120]
[405986440,1771501356727,-902.22165758,0.00048,120]
[405986441,1771501356752,-1908.0897684,0.00048,120]
[405986442,1771501356777,-298.1,0.00048,120]
[405986443,1771501356801,-919.33,0.00048024,120]
[405986444,1771501356825,-508.0,0.0004806,31]
[405986445,1771501356852,-1037.6,0.00048185,120]
[405986446,1771501356877,-1601.638,0.000482,120]
[405986447,1771501356905,-1601.638,0.000482,120]
[405986448,1771501356930,-1601.63,0.000482,120]
[405986449,1771501356953,-204.653233,0.00048277,120]
[405986450,1771501356978,-153.0,0.000483,120]
[405986451,1771501357002,-483.62091564,0.00048329,120]
[405986452,1771501357032,-919.33,0.00048432,120]
[405986453,1771501357057,-7007.00235782,0.000485,120]
[405986454,1771501357080,-813.77208859,0.000485,120]
[405986455,1771501357105,-198.00105982,0.000486,120]
[405986456,1771501357129,-1664.05,0.000486,120]
[405986457,1771501357155,-2390.21559348,0.0004869,120]
[405986458,1771501357180,-916.74860264,0.0004871,120]
[405986459,1771501357205,-1697.835,0.00048767,120]
[405986460,1771501357230,-2836.94567742,0.000488,120]
[405986461,1771501357260,-4145.6735061,0.000488,120]
[405986462,1771501357286,-919.33,0.0004884,120]
[405986463,1771501357310,-527.94116005,0.0004888,120]
[405986464,1771501357336,-153.0,0.000489,120]
[405986465,1771501357361,-1411.00336891,0.000489,120]
[405986466,1771501357386,-1274.07742862,0.000489,120]
[405986467,1771501357411,-1756.86131092,0.000489,120]
[405986468,1771501357436,-1000.0,0.000489,120]
[405986469,1771501357462,-1037.6,0.00048941,120]
[405986470,1771501357491,-1259.9472939,0.00049,120]
[405986471,1771501357516,-800.36779003,0.00049,30]
[405986472,1771501357541,-1229.39540208,0.00049,120]
[405986473,1771501357566,-240.89232933,0.00049,30]
[405986474,1771501357592,-293.33854943,0.00049,30]
[405986475,1771501357620,-268.70412029,0.00049,120]
[405986476,1771501357648,-600.38456932,0.00049,120]
[405986477,1771501357676,-2690.0,0.00049,120]
[405986478,1771501357706,-2503.75791106,0.00049,30]
[405986479,1771501357731,-989.0,0.00049,30]
[405986480,1771501357756,-309.0,0.00049,30]
[405986481,1771501357780,-156.71,0.00049066,120]
[405986482,1771501357806,-919.33,0.00049248,120]
[405986483,1771501357830,-1433.05422735,0.00049315,120]
[405986484,1771501357857,-1353.77,0.00049315,120]
[405986485,1771501357883,-20000.0,0.00049366,120]
[405986486,1771501358094,-20000.0,0.00049367,120]
[405986487,1771501358121,-20000.0,0.00049368,120]
[405986488,1771501358146,-20000.0,0.00049369,120]
[405986489,1771501358171,-1467.37673944,0.000495,120]
[405986490,1771501358196,-50000.0,0.000495,120]
[405986491,1771501358220,-50000.0,0.00049514,120]
[405986492,1771501358245,-50000.0,0.00049515,120]
[405986493,1771501358271,-50000.0,0.0004952,120]
[405986494,1771501358297,-50000.0,0.00049525,120]
[405986495,1771501358321,-50000.0,0.0004953,120]
[405986496,1771501358346,-150.99927331,0.00049552,120]
[405986497,1771501358372,-1980.8075,0.00049589,120]
[405986498,1771501358397,-153.0,0.000496,120]
[405986499,1771501358420,-1580.53,0.00049616,120]
[405986500,1771501358446,-1580.53,0.00049616,120]
[405986501,1771501358471,-1580.53,0.00049616,120]
[405986502,1771501358496,-1580.53,0.00049616,120]
[405986503,1771501358521,-1580.53,0.00049616,120]
[405986504,1771501358560,-1580.53,0.00049616,120]
[405986505,1771501358589,-1580.53,0.00049616,120]
[405986506,1771501358615,-1580.53,0.00049616,120]
[405986507,1771501358640,-1580.53,0.00049616,120]
[405986508,1771501358669,-1580.53,0.00049616,120]
[405986509,1771501358694,-1580.53,0.00049616,120]
[405986510,1771501358719,-1580.53,0.00049616,120]
[405986511,1771501358745,-1580.53,0.00049616,120]
[405986512,1771501358769,-1580.53,0.00049616,120]
[405986513,1771501358794,-1580.53,0.00049616,120]
[405986514,1771501358818,-1580.53,0.00049616,120]
[405986515,1771501358843,-1580.53,0.00049616,120]
[405986516,1771501358870,-1580.53,0.00049616,120]
[405986517,1771501358896,-1580.53,0.00049616,120]
[405986518,1771501358920,-1580.53,0.00049616,120]
[405986519,1771501358945,-1580.53,0.00049616,120]
[405986520,1771501358975,-1580.53,0.00049616,120]
[405986521,1771501359001,-1580.53,0.00049616,120]
[405986522,1771501359026,-1580.73965903,0.00049616,120]
[405986523,1771501359053,-919.33,0.00049656,120]
[405986524,1771501359078,-1037.6,0.00049696,120]
[405986525,1771501359103,-1790.36119827,0.000498,30]
[405986526,1771501359128,-2037.24524371,0.000498,120]
[405986527,1771501359152,-211.35811197,0.00049872,120]
[405986528,1771501359181,-1333.6511331,0.000499,120]
[405986529,1771501359205,-439.70530306,0.00049999,120]
[405986530,1771501359229,-392.19944708,0.00049999,120]
[405986531,1771501359254,-500.0,0.00049999,120]
[405986532,1771501359279,-602.68386366,0.00049999,120]
[405986533,1771501359303,-500.0,0.00049999,120]
[405986534,1771501359327,-500.0,0.00049999,120]
[405986535,1771501359352,-257.57302892,0.00049999,120]
[405986536,1771501359375,-476.72806921,0.00049999,120]
[405986537,1771501359403,-500.0,0.00049999,120]
[405986538,1771501359427,-500.0,0.00049999,120]
[405986539,1771501359452,-500.0,0.00049999,120]
[405986540,1771501359478,-500.0,0.00049999,120]
[405986541,1771501359503,-231.73652764,0.00049999,120]
[405986542,1771501359528,-584.43807791,0.00049999,120]
[405986543,1771501359553,-500.0,0.00049999,120]
[405986544,1771501359579,-584.43807791,0.00049999,120]
[405986545,1771501359606,-584.43807791,0.00049999,120]
[405986546,1771501359637,-584.43807791,0.00049999,120]
[405986547,1771501359663,-584.43807791,0.00049999,120]
[405986548,1771501359688,-584.43807791,0.00049999,120]
[405986549,1771501359714,-584.43807791,0.00049999,120]
[405986550,1771501359738,-584.43807791,0.00049999,120]
[405986551,1771501359762,-584.43807791,0.00049999,120]
[405986552,1771501359788,-584.43807791,0.00049999,120]
[405986553,1771501359812,-584.43807791,0.00049999,120]
[405986554,1771501359838,-584.43807791,0.00049999,120]
[405986555,1771501359866,-584.43807791,0.00049999,120]
[405986556,1771501359898,-584.43807791,0.00049999,120]
[405986557,1771501359937,-584.43807791,0.00049999,120]
[405986558,1771501359978,-584.43807791,0.00049999,120]
[405986559,1771501360004,-584.43807791,0.00049999,120]
[405986560,1771501360029,-584.43807791,0.00049999,120]
[405986561,1771501360053,-584.43807791,0.00049999,120]
[405986562,1771501360081,-584.43807791,0.00049999,120]
[405986563,1771501360105,-584.43807791,0.00049999,120]
[405986564,1771501360129,-584.43807791,0.00049999,120]
[405986565,1771501360153,-584.43807791,0.00049999,120]
[405986566,1771501360179,-584.43807791,0.00049999,120]
[405986567,1771501360203,-584.43807791,0.00049999,120]
[405986568,1771501360227,-584.43807791,0.00049999,120]
[405986569,1771501360251,-584.43807791,0.00049999,120]
[405986570,1771501360278,-500.0,0.00049999,120]
[405986571,1771501360304,-584.43807791,0.00049999,120]
[405986572,1771501360329,-584.43807791,0.00049999,120]
[405986573,1771501360355,-584.43807791,0.00049999,120]
[405986574,1771501360380,-584.43807791,0.00049999,120]
[405986575,1771501360404,-584.43807791,0.00049999,120]
[405986576,1771501360431,-500.0,0.00049999,120]
[405986577,1771501360455,-584.43807791,0.00049999,120]
[405986578,1771501360483,-584.43807791,0.00049999,120]
[405986579,1771501360508,-584.43807791,0.00049999,120]
[405986580,1771501360532,-584.43807791,0.00049999,120]
[405986581,1771501360557,-584.43807791,0.00049999,120]
[405986582,1771501360585,-500.0,0.00049999,120]
[405986583,1771501360609,-584.43807791,0.00049999,120]
[405986584,1771501360634,-584.43807791,0.00049999,120]
[405986585,1771501360660,-584.43807791,0.00049999,120]
[405986586,1771501360685,-584.43807791,0.00049999,120]
[405986587,1771501360710,-584.43807791,0.00049999,120]
[405986588,1771501360736,-584.43807791,0.00049999,120]
[405986589,1771501360761,-584.43807791,0.00049999,120]
[405986590,1771501360941,-500.31147481,0.00049999,120]
[405986591,1771501360967,-584.43807791,0.00049999,120]
[405986592,1771501360993,-584.43807791,0.00049999,120]
[405986593,1771501361018,-584.43807791,0.00049999,120]
[405986594,1771501361042,-584.43807791,0.00049999,120]
[405986595,1771501361067,-500.0,0.00049999,120]
[405986596,1771501361091,-584.43807791,0.00049999,120]
[405986597,1771501361115,-584.43807791,0.00049999,120]
[405986598,1771501361140,-500.0,0.00049999,120]
[405986599,1771501361164,-562.52164998,0.00049999,120]
[405986600,1771501361189,-562.52164998,0.00049999,120]
[405986601,1771501361212,-562.52164998,0.00049999,120]
[405986602,1771501361236,-562.52164998,0.00049999,120]
[405986603,1771501361260,-562.52164998,0.00049999,120]
[405986604,1771501361284,-562.52164998,0.00049999,120]
[405986605,1771501361307,-562.52164998,0.00049999,120]
[405986606,1771501361332,-562.52164998,0.00049999,120]
[405986607,1771501361357,-562.52164998,0.00049999,120]
[405986608,1771501361382,-562.52164998,0.00049999,120]
[405986609,1771501361407,-562.52164998,0.00049999,120]
[405986610,1771501361432,-562.52164998,0.00049999,120]
[405986611,1771501361463,-562.52164998,0.00049999,120]
[405986612,1771501361488,-562.52164998,0.00049999,120]
[405986613,1771501361514,-562.52164998,0.00049999,120]
[405986614,1771501361539,-562.52164998,0.00049999,120]
[405986615,1771501361563,-562.52164998,0.00049999,120]
[405986616,1771501361587,-562.52164998,0.00049999,120]
[405986617,1771501361612,-562.52164998,0.00049999,120]
[405986618,1771501361637,-562.52164998,0.00049999,120]
[405986619,1771501361676,-562.52164998,0.00049999,120]
[405986620,1771501361703,-562.52164998,0.00049999,120]
[405986621,1771501361729,-562.52164998,0.00049999,120]
[405986622,1771501361759,-500.0,0.00049999,120]
[405986623,1771501361787,-200.0,0.00049999,120]
[405986624,1771501361813,-562.52164988,0.00049999,120]
[405986625,1771501361841,-50000.0,0.0005,70]
[405986626,1771501361874,-131596.65897183,0.0005,97]
[405986627,1771501361904,-1000000.0,0.0005,97]
[405986628,1771501361931,-1000000.0,0.0005,120]
[405986629,1771501361958,-1000000.0,0.0005,120]
[405986630,1771501361986,-1000000.0,0.0005,120]
[405986631,1771501362014,-1000000.0,0.0005,120]
[405986632,1771501362041,-1000000.0,0.0005,120]
[405986633,1771501362066,-400.0,0.0005,120]
[405986634,1771501362100,-160.0,0.0005,30]
[405986635,1771501362129,-150.0,0.0005,120]
[405986636,1771501362154,-919.0,0.0005,120]
[405986637,1771501362179,-173.09055846,0.0005,120]
[405986638,1771501362204,-2124.61907276,0.0005,30]
[405986639,1771501362228,-484.9792046,0.0005,120]
[405986640,1771501362254,-1648.97745726,0.0005,120]
[405986641,1771501362278,-965.65928213,0.0005,30]
[405986642,1771501362302,-820.29317188,0.0005,120]
[405986643,1771501362326,-239.59967393,0.0005,30]
[405986644,1771501362354,-199.999999,0.0005,120]
[405986645,1771501362379,-1078.94699465,0.0005,120]
[405986646,1771501362404,-2280.25641886,0.0005,120]
[405986647,1771501362429,-1386.24603368,0.0005,120]
[405986648,1771501362454,-1100.5311758,0.0005,120]
[405986649,1771501362478,-687.18363165,0.0005,120]
[405986650,1771501362502,-225.9916945,0.0005,120]
[405986651,1771501362526,-500.0,0.0005,30]
[405986652,1771501362551,-1164.03738225,0.0005,120]
[405986653,1771501362578,-1927.00505744,0.0005,120]
[405986654,1771501362602,-1165.20892642,0.0005,120]
[405986655,1771501362627,-182.27861175,0.0005,120]
[405986656,1771501362652,-200.0,0.0005,120]
[405986657,1771501362677,-160.68931328,0.0005,120]
[405986658,1771501362704,-1248.6787016,0.0005,120]
[405986659,1771501362728,-1182.23,0.0005,120]
[405986660,1771501362753,-158.0,0.0005,120]
[405986661,1771501362779,-995.2101,0.0005,120]
[405986662,1771501362809,-649.73993373,0.0005,120]
[405986663,1771501362834,-600.0,0.0005,120]
[405986664,1771501362864,-840.0,0.0005,120]
[405986665,1771501362891,-150.0,0.0005,120]
[405986666,1771501362918,-300.0,0.0005,120]
[405986667,1771501362943,-2125.07,0.0005,120]
[405986668,1771501362968,-180.0,0.0005,120]
[405986669,1771501362995,-919.33,0.00050064,120]
[405986670,1771501363022,-919.98,0.000501,30]
[405986671,1771501363052,-318.49187944,0.0005011,120]
[405986672,1771501363082,-153.0,0.000502,120]